Cogmind - Beta 13 @@@ ROGUE MODE // 2024.04.05 @ 13:26:57 Player: Vriska Result: Destroyed by D-53 Grenadier with Mini Grenade Launcher Performance ------------- Evolutions (0) 0 Regions Visited (2) 400 Robots Destroyed (16) 80 Value Destroyed (365) 365 Prototype IDs (4) 80 Alien Tech Used (0) 0 Bonus (0) 0 TOTAL SCORE: 925 Bonus ------- None Cogmind --------- Core Integrity 0/250 Matter 190/300 Energy 100/100 System Corruption 1% Temperature Cool (0) Movement Core (200) Ox3 Location -10/Mines Parts ------- > --- POWER (1) -------- (None) > --- PROPULSION (2) --- (None) > --- UTILITY (2) ------ Medium Storage Unit Signal Interpreter > --- WEAPON (2) ------- (None) > --- INVENTORY (10) --- Ion Engine Small Storage Unit Assault Rifle Assault Rifle Grenade Launcher Datajack Peak State ------------ > --- POWER ------------ Ion Engine > --- PROPULSION ------- Compact Wheel Compact Wheel > --- UTILITY ---------- Small Storage Unit Light Armor Plating > --- WEAPON ----------- Beam Cannon Assault Rifle > --- INVENTORY -------- Light Ion Engine Assault Rifle Light Assault Rifle Light Assault Rifle Light Assault Rifle Light Assault Rifle Light Assault Rifle [Rating: 7] Favorites ----------- Power Ion Engine Engine Ion Engine Propulsion Compact Wheel Wheel Compact Wheel Utility Medium Storage Unit Storage Medium Storage Unit Processor Signal Interpreter Protection Light Armor Plating Weapon Grenade Launcher Energy Gun Small Laser Energy Cannon Beam Cannon Ballistic Gun Assault Rifle Launcher Grenade Launcher Build | -11 -10 -10 ------- Run | Yrd Mat Min Slots Evolved . | . . . Power . | . . . Propulsion . | . . . Utility . | . . . Weapon . | . . . Parts Attached 13 | 6 6 1 Power 1 | 1 . . Engine 1 | 1 . . Core . | . . . Reactor . | . . . Propulsion 2 | 2 . . Treads . | . . . Leg . | . . . Wheel 2 | 2 . . Hover . | . . . Flight . | . . . Utility 4 | 1 2 1 Device . | . . . Storage 2 | 1 1 . Processor 1 | . . 1 Hackware . | . . . Protection 1 | . 1 . Artifact . | . . . Weapon 6 | 2 4 . Energy Gun 1 | 1 . . Energy Cannon 1 | . 1 . Ballistic Gun 2 | 1 1 . Ballistic Cannon . | . . . Launcher 2 | . 2 . Special Weapon . | . . . Impact Weapon . | . . . Slashing Weapon . | . . . Piercing Weapon . | . . . Special Melee Weapon . | . . . Unidentified Prototypes . | . . . Parts Lost 5 | . . 5 Power 1 | . . 1 Propulsion 2 | . . 2 Utility . | . . . Weapon 2 | . . 2 Highest Loss Streak 5 | . . 5 To Critical Strikes . | . . . Average Slot Usage (%) 96 | . 97 95 Engine 13 | . 14 13 Wheel 27 | . 28 26 Storage 14 | . 14 14 Processor 2 | . . 10 Protection 9 | . 12 3 Ballistic Gun 2 | . 3 . Launcher 23 | . 22 26 Naked Turns . | . . . Heaviest Build 24 | 13 24 24 Greatest Support 32 | 32 32 32 Greatest Overweight (x) 4 | . . 4 Average Overweight (x) . | . . . Largest Inventory Capacity 10 | 8 10 10 Average Capacity 9 | 6 9 10 Most Carried 8 | 5 8 7 Average Carried 4 | 1 4 6 Final Capacity 10 | 8 10 10 Final Carried 6 | 1 6 6 Class Distribution -------------------- 100% | Mutant Dominant Class ---------------- Mutant | -10/Materials Mutant | -10/Mines Resources | -11 -10 -10 ----------- Run | Yrd Mat Min Matter Collected 493 | 247 130 116 Remotely . | . . . Salvage Created 197 | . 69 128 Parts 26 | . 18 8 Haulers Intercepted . | . . . Recyclers Shooed . | . . . Parts Field Recycled . | . . . Retrieved Matter . | . . . Parts Self-Destructed . | . . . Prevented . | . . . Kills | -11 -10 -10 ------- Run | Yrd Mat Min Combat Hostiles Destroyed 13 | . 7 6 AOE 13 | . 7 6 Classes Destroyed 5 | . 2 3 Worker 1 | . . 1 Watcher 3 | . 3 . Swarmer 7 | . 7 . Grunt 5 | . . 5 Assembled 1 | . . 1 Best Kill Streak 4 | . 4 2 Combat Bots Only 3 | . 3 2 Max Kills in Single Turn 2 | . 2 2 Gunslinging . | . . . Exploded 2 | . 2 1 Melee . | . . . Uniques/NPCs Destroyed . | . . . Combat | -11 -10 -10 -------- Run | Yrd Mat Min Hostile Shots Fired 41 | . 10 31 Missed 16 | . 5 11 Damage Taken 743 | . 101 642 Core 253 | . 3 250 Absorbed by Shields . | . . . Core Remaining (%) 100 | 100 . . Volleys Fired 21 | . 13 8 Largest 2 | . 2 2 Hottest 60 | . 60 60 Shots Fired 29 | . 17 12 Gun . | . . . Cannon . | . . . Launcher 29 | . 17 12 Special . | . . . Kinetic . | . . . Thermal . | . . . Explosive 29 | . 17 12 Electromagnetic . | . . . Robot Hit Streak 8 | . 4 8 Robot Miss Streak 2 | . 2 1 Penetration Max . | . . . Secondary Targets . | . . . Shots Hit Robots 16 | . 8 8 Core Hits 34 | . 16 18 Critical Kills . | . . . Critical Parts Destroyed . | . . . Critical Strikes . | . . . Melee Attacks . | . . . Impact . | . . . Slashing . | . . . Piercing . | . . . Sneak Attacks . | . . . Combat Hostiles . | . . . Follow-up Attacks . | . . . Damage Inflicted 1157 | . 568 589 Guns . | . . . Cannons . | . . . Explosions 1157 | . 568 589 Melee . | . . . Ramming . | . . . Kinetic . | . . . Thermal . | . . . Explosive 1157 | . 568 589 Electromagnetic . | . . . Impact . | . . . Slashing . | . . . Piercing . | . . . Highest Corruption 1 | . 1 1 Average Corruption 1 | . 1 1 Corruption Purged . | . . . Corruption Blocked . | . . . Effects 7 | . 5 2 Message Errors 1 | . 1 . Matter Fused 1 | . . 1 Heat Flow Errors 1 | . 1 . Energy Discharges 1 | . 1 . Data Loss (minor) 2 | . 2 . Data Loss (major) 1 | . . 1 Overload Shots . | . . . Overflow Damage 12 | . 12 . Projectiles . | . . . Explosions 12 | . 12 . Melee . | . . . Knockbacks . | . . . Impact . | . . . Kinetic . | . . . Secondary . | . . . Self-Inflicted Damage 76 | . 67 9 Shots 4 | . 3 1 Rammed . | . . . Targets Rammed . | . . . Kicked . | . . . Crushed . | . . . Highest Temperature 160 | . 160 18 Average Temperature 29 | . 40 6 Received Heat Transfer 42 | . . 42 Siege Activations . | . . . Robots Corrupted . | . . . Combat Hostiles . | . . . Parts Fried . | . . . Impact Corruptions . | . . . Robots Melted . | . . . Combat Hostiles . | . . . Parts Melted . | . . . Heat Transferred . | . . . Parts Sabotaged . | . . . Parts Stolen . | . . . Parts Stripped . | . . . Power Chain Reactions . | . . . Alert | -11 -10 -10 ------- Run | Yrd Mat Min Peak Influence 263 | . 263 246 Initial 43 | . . 43 Average 97 | . 73 180 Maximum Alert Level 1 | . 1 1 Low Security (%) 90 | 100 93 78 Level 1 9 | . 6 21 Level 2 . | . . . Level 3 . | . . . Level 4 . | . . . Level 5 . | . . . High Security . | . . . Max Security . | . . . Squads Dispatched 1 | . 1 . Investigation . | . . . Extermination . | . . . Reinforcement 1 | . 1 . Assault . | . . . Garrison . | . . . Intercept . | . . . Searches Triggered . | . . . Construction Impeded . | . . . Haulers Reinforced . | . . . Active Scanning Responses . | . . . Cargo Convoy Interrupts . | . . . Stealth | -11 -10 -10 --------- Run | Yrd Mat Min Distress Signals . | . . . Communications Jammed . | . . . Distress Signals . | . . . Times Spotted 26 | . 11 15 Peak Tracking Total 6 | . 3 6 Tactical Retreats 1 | . 1 . Traps | -11 -10 -10 ------- Run | Yrd Mat Min Traps Triggered . | . . . Indirectly . | . . . Trap Hack Attempts . | . . . Triggered . | . . . Disarmed . | . . . Reprogrammed . | . . . Reused . | . . . Traps Extracted . | . . . Installed . | . . . Triggered . | . . . Machines | -11 -10 -10 ---------- Run | Yrd Mat Min Machines Disabled 5 | . 3 2 Max in Single Turn 2 | . 1 2 Machines Repaired . | . . . Machines Dismantled . | . . . Machines Sabotaged . | . . . Overloaded Fab Kills . | . . . Hacking | -11 -10 -10 --------- Run | Yrd Mat Min Machines Accessed 6 | . 5 1 Terminals 5 | . 4 1 Fabricators . | . . . Repair Stations . | . . . Recycling Units 1 | . 1 . Scanalyzers . | . . . Garrison Access . | . . . Total Hacks 11 | . 8 3 Successful 9 | . 7 2 Failed 2 | . 1 1 Catastrophic . | . . . Database Lockouts . | . . . Manual . | . . . Terminals 10 | . 7 3 Fabricators . | . . . Repair Stations . | . . . Recycling Units 1 | . 1 . Scanalyzers . | . . . Garrison Access . | . . . Terminal Hacks 8 | . 6 2 Prototype ID Bank 2 | . 2 . Branch Access Points 1 | . 1 . Emergency Access Points 1 | . 1 . Alert Level 1 | . 1 . Locate Traps 1 | . 1 . Dispatch Records 1 | . . 1 Zone Layout 1 | . . 1 Fabricator Hacks . | . . . Repair Station Hacks . | . . . Recycling Unit Hacks 1 | . 1 . Report Inventory 1 | . 1 . Scanalyzer . | . . . Garrison Access Hacks . | . . . Unauthorized Hacks . | . . . Terminals . | . . . Fabricators . | . . . Repair Stations . | . . . Recycling Units . | . . . Scanalyzers . | . . . Garrison Access . | . . . Data Cores Recovered . | . . . Used . | . . . Hacking Detections 4 | . 3 1 Full Trace Events . | . . . Feedback Events . | . . . Feedback Blocked . | . . . Robot Schematics Acquired . | . . . Robots Built . | . . . Authchips . | . . . Time . | . . . Total Robot Build Rating . | . . . Part Schematics Acquired . | . . . Parts Built . | . . . Authchips . | . . . Time . | . . . Total Part Build Rating . | . . . Parts Repaired . | . . . Time . | . . . Parts Recycled . | . . . Recycled Matter . | . . . Retrieved Matter . | . . . Retrieved Components . | . . . Parts Scanalyzed . | . . . Part Schematics Acquired . | . . . Parts Damaged . | . . . Bothacking | -11 -10 -10 ------------ Run | Yrd Mat Min Used RIF Installer . | . . . Robots Hacked . | . . . Non-combat . | . . . Combat . | . . . Robot Hacks Applied . | . . . Relay Couplers Released . | . . . Fabnet Peak Effective % . | . . . Robots Rewired . | . . . Allies Hacked . | . . . Hacks Repelled . | . . . Allies | -11 -10 -10 -------- Run | Yrd Mat Min Total Allies . | . . . Largest Group . | . . . Highest-Rated Group . | . . . Highest-Rated Ally . | . . . Total Orders . | . . . Ally Attacks . | . . . Total Damage . | . . . Kills . | . . . Allies Corrupted . | . . . Allies Melted . | . . . Intel | -11 -10 -10 ------- Run | Yrd Mat Min Robot Analysis Total . | . . . Derelict Logs Recovered 1 | . . 1 Drone Launches . | . . . Drone Recoveries . | . . . Exploration | -11 -10 -10 ------------- Run | Yrd Mat Min Turns Passed 1232 | 73 839 320 Spaces Moved 1123 | 63 772 288 Core 15 | 8 . 7 Treads . | . . . Legs . | . . . Wheels 1108 | 55 772 281 Hover . | . . . Flight . | . . . Fastest Speed 50 | 50 100 100 Average Speed 100 | 93 100 102 Slowest Speed 250 | 100 100 250 Overloaded Moves . | . . . Propulsion Burnouts . | . . . Robots Hopped . | . . . Cave-ins Triggered . | . . . Exploration Rate (%) 45 | 4 92 41 Regions Visited 2 Branch Regions 1 Pre-discovered Areas . | . . . Known Exits Taken 1 | . 1 . Unknown Exits Taken 1 | 1 . . Scrap Searched 2 | . . 2 Spaces Dug . | . . . Terrain Destroyed 160 | . 91 69 Melee . | . . . Projectile . | . . . AOE 160 | . 91 69 Terrain Rammed . | . . . Walls Destroyed . | . . . Machines Disabled . | . . . Actions | -11 -10 -10 --------- Run | Yrd Mat Min Total 1205 | 77 827 301 Wait 7 | . 5 2 Move 1121 | 62 771 288 Hop . | . . . Pick Up 28 | 8 19 1 Fast Attach . | . . . Attach 11 | 6 4 1 Detach . | . . . Swap 2 | . 2 . Drop 15 | 1 13 1 Fire 21 | . 13 8 Melee . | . . . Ram . | . . . Kick . | . . . Crush . | . . . Escape Stasis . | . . . Rewire . | . . . Trap . | . . . Miscellaneous . | . . . Route ------- -11/Scrapyard -10/Materials (discovered 3 exits: *Mat x2 / *Min) -10/Mines (discovered 1 exit: *Mat) History --------- Turn | Location | Event 2 | -11/Scrapyard | Met Revision 17 25 | -11/Scrapyard | Discovered new exit (range 16) 74 | -11/Scrapyard | Entered Materials 123 | -10/Materials | Discovered new exit (range 7) 153 | -10/Materials | Discovered new exit (range 15) 313 | -10/Materials | Build established: Mutant 564 | -10/Materials | Identified exit to Mines 576 | -10/Materials | Discovered new exit (range 15) 913 | -10/Materials | Entered Mines 951 | -10/Mines | Met a Derelict bent on vengeance 991 | -10/Mines | Discovered new exit (range 4) 997 | -10/Mines | Identified exit to Materials 1139 | -10/Mines | Learned location of 2 exits from Materials 1179 | -10/Mines | Assembled infested the area 1220 | -10/Mines | Core integrity fell below 50% 1227 | -10/Mines | Core integrity fell below 20% 1233 | -10/Mines | Destroyed by D-53 Grenadier with Mini Grenade Launcher Last Messages --------------- C-30 ARC bursts open, deploying its payload. D-53 Grenadier unfolds itself. K-01 Serf destroyed. Grenade Launcher destroyed. Ion Engine destroyed. R-06 Scavenger destroyed. Com. Wheel destroyed. Grenade Launcher destroyed. U-05 Engineer lays Concrete. U-05 Engineer builds a Wall. as-61362 destroyed. as-11412 destroyed. U-05 Engineer lays Concrete. The unstable cave ceiling collapses. as-67729 destroyed. as-49724 destroyed. U-05 Engineer lays Concrete. Acquired 1 matter. U-05 Engineer builds a Wall. U-05 Engineer lays Concrete. Map ----- +----------------------------------------------------+ | ?????????############# ##? # # | | ????????## ## ^ ## ## """ """ """ " | | #####??## ## ## ##### """ """ """ " | | ! #?## # " """ """ """ " | | ### ### ### #^ | | ??# ##| #### # ####### """ """ """ " | | ??# ! ! ## # ^^ ##?## # "" """ """ """ " | | ??##### ###### ########???## # " """ """ """ " | | ??????####?## ####?????????#T | | ????????????# ###????????????##################### | | ?????????#### #??????????????????????????????????? | | ########## ##?????????????????????????????????? | | ##????????????????????????????????? | | ##???????????????????????????????? | | ######### #???????????????????????????????? | | ????????# #??????????????????????????????? | | ####????## #??????????????????????????????? | | #?????# ##?????????###??????????????????? | | #????## #####?????????# ##?????????????????? | | #???## ##????????????? #?????????????????? | | ###??## #??????######## #?????????????????? | | ###### "#????### #?????????????????? | | "%###### #?????????????????? | | " ## #??????????????????? | | ### =uu! #??????????????????? | | #?# %= d @ #??????????????????? | | #?## ! d #??????????????????? | | ####??#### #?????????????????? | | ?????????## # #????????????????? | | ??????????## # # a ##????????????????? | | ???????????## ## #### a t????????????????? | | ????????????######?#####??? #???????????????? | | ??????????????????????????? ####???????????????? | | ???????????????????????????# #??????????????????? | | ???????????????????????????? #??????????????????? | | ???????????????????????????? #??????????????????? | | ???????????????????????????? #??????????????????? | | ?????????????????????????????##??????????????????? | | ?????????????????????????????????????????????????? | | ?????????????????????????????????????????????????? | | ?????????????????????????????????????????????????? | | ?????????????????????????????????????????????????? | | ?????????????????????????????????????????????????? | | ?????????????????????????????????????????????????? | | ?????????????????????????????????????????????????? | | ?????????????????????????????????????????????????? | | ?????????????????????????????????????????????????? | | ?????????????????????????????????????????????????? | | ?????????????????????????????????????????????????? | | ?????????????????????????????????????????????????? | +----------------------------------------------------+ Best States ------------- Heat Dissipation 25 Energy Generation 10 Energy Capacity 250 Matter Stores 300 Matter Capacity 300 Sight Range 16 Terrain Scan Density 10 Armor Coverage 150 Evasion (%) 40 Item Schematics ----------------- None Robot Schematics ------------------ None Fabricated ------------ Nothing Alien Tech Used ----------------- None Achievements -------------- None Challenges ------------ None Game ------ Seed MassSwordPendant Manual? 0 Play Time 00:13:09 Cumulative 4.1 hours Start 2024.04.05 @ 13:11:30 End 2024.04.05 @ 13:26:57 Sessions 1 Manual Loads 0 Difficulty Rogue Special Mode None Game No. 9 Rogue 9 Adventurer 0 Explorer 0 Win Type - Total 0 Types 0/0/0/0/0/0/0/0/0 Lore% 10 Gallery% 7 Achievement% 8 Wizard Run 0 Options --------- Layout 1 ASCII 0 Keyboard 0 Movement Arrows Keybinds 0 Fullscreen 1 Font 24/Smallcaps Map View 50x35 Zoom Use 0% Tactical HUD 0 Map Filters NONE Filters NONE Steam 1 RUN: 51fba213-4cc6-41de-9427-f95e4f54e097